bitfinex/quotes_SOLUSD_20251106
["timestamp","ask_amount","ask_price","bid_price","bid_amount"]
[1762425238357,6.24063364,159.57,159.52,26.86051722]
[1762425238561,7.32,159.56,159.52,33.24115086]
[1762425238883,7.32,159.55,159.52,33.24115086]
[1762425239059,0.57,159.57,159.52,33.24115086]
[1762425239259,7.32,159.56,159.52,33.24115086]
[1762425239571,7.32,159.55,159.52,33.24115086]
[1762425240357,7.32,159.55,159.52,32.53115086]
[1762425240569,104.7,159.56,159.53,16.16946133]
[1762425240759,104.7,159.56,159.54,5.67063364]
[1762425240959,7.32,159.56,159.54,9.78882769]
[1762425241176,7.32,159.56,159.55,15.45946133]
[1762425241373,0.57,159.6,159.55,6.38063364]
[1762425241568,7.32,159.59,159.56,5.67063364]
[1762425242069,5.67063364,159.57,159.52,32.53115086]
[1762425242259,5.67063364,159.57,159.52,11.93915086]
[1762425242461,5.67063364,159.6,159.55,5.67063364]
[1762425242671,110.94063364,159.61,159.55,5.67063364]
[1762425242869,110.94063364,159.61,159.55,6.38063364]
[1762425243185,7.89,159.6,159.55,6.38063364]
[1762425243592,7.32,159.59,159.55,6.38063364]
[1762425243889,0.57,159.6,159.54,9.78882769]
[1762425243890,104.7,159.61,159.58,5.67063364]
[1762425244079,112.02,159.6,159.58,5.67063364]
[1762425244273,7.32,159.59,159.58,5.67063364]
[1762425244468,104.7,159.6,159.58,5.67063364]
[1762425244884,7.32,159.59,159.58,5.67063364]
[1762425245084,7.32,159.59,159.57,11.93718025]
[1762425245293,104.7,159.6,159.58,5.67063364]
[1762425245590,7.32,159.59,159.58,5.67063364]
[1762425246029,104.7,159.6,159.58,6.38063364]
[1762425246183,104.7,159.6,159.59,5.67063364]
[1762425246506,112.02,159.6,159.58,0.71]
[1762425246662,104.7,159.6,159.58,11.93697627]
[1762425246861,7.32,159.59,159.58,21.72580396]
[1762425247080,104.7,159.6,159.58,22.43580396]
[1762425247299,104.7,159.6,159.57,5.67063364]
[1762425247483,0.57,159.59,159.56,11.93755405]
[1762425247670,0.57,159.59,159.56,6.26692041]
[1762425247874,0.57,159.59,159.55,11.93823584]
[1762425248093,110.37063364,159.6,159.55,12.64823584]
[1762425248303,110.94063364,159.6,159.55,12.64823584]
[1762425248501,0.57,159.59,159.55,11.93823584]
[1762425248710,7.89,159.59,159.55,6.2676022]
[1762425248902,7.89,159.59,159.54,5.67063364]
[1762425248903,6.24063364,159.59,159.54,11.93850966]
[1762425249206,110.94063364,159.58,159.52,5.67063364]
[1762425249503,110.94063364,159.58,159.53,5.67063364]
[1762425249691,104.7,159.58,159.55,5.67063364]
[1762425249893,104.7,159.58,159.52,6.38063364]
[1762425249894,7.32,159.57,159.52,6.38063364]
[1762425250099,0.57,159.57,159.52,6.38063364]
[1762425250285,7.89,159.56,159.52,6.38063364]
[1762425250691,7.89,159.56,159.52,12.64929385]
[1762425250891,0.2,159.63,159.53,10.49882769]
[1762425251205,5.67063364,159.61,159.56,5.67063364]
[1762425251381,5.67063364,159.6,159.54,6.38063364]
[1762425251582,7.34,159.59,159.54,6.38063364]
[1762425251803,5.67063364,159.6,159.54,6.38063364]
[1762425252000,7.91,159.59,159.54,5.67063364]
[1762425252203,7.34,159.58,159.54,5.67063364]
[1762425252504,6.24063364,159.58,159.53,16.16946133]
[1762425252705,5.67063364,159.6,159.54,12.64865419]
[1762425252890,26.83263364,159.61,159.55,5.67063364]
[1762425253100,7.34,159.6,159.55,5.67063364]
[1762425253704,7.34,159.59,159.55,6.38063364]
[1762425253911,7.34,159.59,159.56,5.67063364]
[1762425254113,7.34,159.58,159.56,5.67063364]
[1762425254901,7.34,159.58,159.56,11.93777823]
[1762425255109,7.34,159.58,159.56,12.64777823]
[1762425255897,7.34,159.58,159.57,0.71]
[1762425256095,7.34,159.58,159.56,12.64777823]
[1762425256511,7.34,159.58,159.57,5.67063364]
[1762425256687,20.792,159.62,159.57,6.38063364]
[1762425256889,7.34,159.61,159.58,6.38063364]
[1762425257108,112.04,159.61,159.58,12.64686301]
[1762425257810,104.7,159.61,159.58,12.64686301]
[1762425258110,104.7,159.61,159.58,6.38063364]
[1762425258412,104.7,159.61,159.58,14.93138108]
[1762425258600,7.34,159.6,159.58,6.97640864]
[1762425258806,7.34,159.59,159.58,6.97640864]
[1762425259515,7.34,159.59,159.55,0.71]
[1762425259718,0.57,159.59,159.55,7.95497244]
[1762425260015,7.34,159.58,159.55,7.95497244]
[1762425260214,7.34,159.58,159.55,8.66497244]
[1762425260215,112.04,159.58,159.55,8.66497244]
[1762425260716,104.7,159.58,159.55,29.25697244]
[1762425260927,7.34,159.57,159.55,29.25697244]
[1762425261613,7.34,159.57,159.56,6.26723489]
[1762425261823,7.34,159.57,159.56,6.97723489]
[1762425262116,104.7,159.58,159.56,6.97723489]
[1762425262297,104.7,159.58,159.56,0.71]
[1762425262495,7.34,159.57,159.56,0.71]
[1762425262793,7.34,159.57,159.55,34.81455771]
[1762425263002,104.7,159.58,159.55,35.51455771]
[1762425263207,7.34,159.57,159.55,35.51455771]
[1762425263408,7.34,159.56,159.55,20.592]
[1762425263604,7.34,159.56,159.53,14.92323972]
[1762425263605,0.57,159.57,159.53,14.22323972]
[1762425263827,7.34,159.56,159.52,34.81575457]
[1762425264007,7.34,159.55,159.54,7.95497244]
[1762425264626,7.34,159.55,159.54,8.65497244]
[1762425265125,104.7,159.58,159.54,8.65497244]
[1762425265315,7.34,159.57,159.54,8.65497244]
[1762425265513,7.34,159.57,159.55,0.7]
[1762425265700,104.7,159.58,159.55,14.9224374]
[1762425266042,7.34,159.57,159.55,14.9224374]
[1762425266197,7.34,159.56,159.55,14.9224374]
[1762425266393,104.7,159.58,159.55,14.9224374]
[1762425266820,7.34,159.57,159.55,14.9224374]
[1762425267525,104.7,159.58,159.55,14.9224374]
[1762425267726,7.34,159.57,159.55,14.9224374]
[1762425267923,104.7,159.58,159.56,10.48882769]
[1762425268112,104.7,159.58,159.56,18.44380013]
[1762425268794,7.34,159.57,159.56,18.44380013]
[1762425268997,104.7,159.58,159.56,18.44380013]
[1762425269313,7.34,159.57,159.56,18.44380013]
[1762425269922,104.7,159.58,159.56,18.44380013]
[1762425270129,104.7,159.58,159.56,24.71068054]
[1762425270303,7.34,159.57,159.56,24.71068054]
[1762425270722,104.7,159.58,159.56,24.71068054]
[1762425271033,7.34,159.57,159.56,24.71068054]
[1762425271221,7.32,159.57,159.56,24.71068054]
[1762425271528,104.7,159.58,159.56,24.71068054]
[1762425271730,7.32,159.57,159.56,24.71068054]
[1762425272112,104.7,159.58,159.56,24.71068054]
[1762425272441,7.89,159.57,159.52,36.26370837]
[1762425272719,15.84497244,159.57,159.53,6.2682904]
[1762425273022,0.57,159.56,159.5,6.26952315]
[1762425273224,7.95497244,159.55,159.5,14.22449559]
[1762425273568,7.32,159.54,159.52,9.78882769]
[1762425273701,0.57,159.6,159.54,9.78882769]
[1762425274027,7.34,159.59,159.55,7.95497244]
[1762425274433,7.34,159.58,159.55,7.95497244]
[1762425275198,0.57,159.59,159.55,14.92250343]
[1762425275907,0.57,159.59,159.55,6.26753099]
[1762425276102,0.57,159.59,159.55,14.22250343]
[1762425277129,7.32,159.58,159.56,7.95497244]
[1762425277357,0.77,159.62,159.57,7.95497244]
[1762425277563,21.362,159.62,159.58,7.95497244]
[1762425277856,0.2,159.62,159.58,0.66]
[1762425278040,0.2,159.62,159.61,17.74380013]
[1762425278361,0.2,159.62,159.61,24.00907172]
[1762425278570,7.54,159.62,159.61,6.26527159]
[1762425278863,0.2,159.62,159.61,7.95497244]
[1762425279071,0.2,159.62,159.61,14.88024403]
[1762425279235,7.54,159.62,159.61,16.71409928]
[1762425279433,7.54,159.62,159.61,24.66907172]
[1762425279434,0.2,159.62,159.61,24.66907172]
[1762425280262,0.2,159.62,159.61,10.44882769]
[1762425280564,0.2,159.62,159.61,18.40380013]
[1762425280734,0.2,159.62,159.61,24.66907172]
[1762425280931,7.54,159.62,159.61,24.66907172]
[1762425281150,0.2,159.62,159.61,16.71409928]
[1762425281358,7.54,159.62,159.61,24.66907172]
[1762425281544,0.2,159.62,159.61,24.66907172]
[1762425282149,0.2,159.62,159.61,16.71409928]
[1762425282355,16.96,159.71,159.65,30.38082769]
[1762425282543,16.96,159.71,159.66,0.66]
[1762425282860,16.96,159.71,159.69,7.95497244]
[1762425283042,7.34,159.7,159.69,7.95497244]
[1762425283363,16.96,159.71,159.68,7.95497244]
[1762425283364,17.53,159.71,159.68,7.95497244]
[1762425283581,16.96,159.71,159.68,7.95497244]
[1762425283869,0.1,159.73,159.7,7.95497244]
[1762425284062,1e-08,159.73,159.72,30.38082769]
[1762425284248,0.1,159.74,159.72,30.38082769]
[1762425284249,1e-08,159.75,159.74,20.592]
[1762425284449,1e-08,159.75,159.74,24.00397291]
[1762425284649,7.36,159.84,159.77,9.78882769]
[1762425284857,7.36,159.84,159.74,43.13718746]
[1762425284858,7.36,159.84,159.83,20.592]
[1762425285055,7.93,159.84,159.83,20.592]
[1762425285254,7.93,159.84,159.8,9.78882769]
[1762425285451,0.57,159.83,159.81,20.592]
[1762425285671,0.57,159.83,159.78,9.78882769]
[1762425285873,8.52497244,159.83,159.79,9.78882769]
[1762425286168,0.57,159.83,159.76,0.66]
[1762425286468,0.57,159.82,159.76,9.78882769]
[1762425286673,0.57,159.82,159.76,10.44882769]
[1762425287166,50.0,159.85,159.78,7.95497244]
[1762425287365,50.0,159.85,159.76,9.78882769]
[1762425287366,0.57,159.84,159.8,7.95497244]
[1762425287673,0.57,159.84,159.77,0.66]
[1762425287674,7.36,159.83,159.77,0.66]
[1762425287852,16.94,159.89,159.83,9.78882769]
[1762425288051,16.94,159.89,159.82,7.95497244]
[1762425288052,0.57,159.88,159.8,9.78882769]
[1762425288241,8.52497244,159.88,159.8,10.44882769]
[1762425288442,8.52497244,159.88,159.83,7.95497244]
[1762425288664,7.36,159.87,159.83,7.95497244]
[1762425288868,0.57,159.87,159.8,10.44882769]
[1762425289078,0.57,159.87,159.82,9.78882769]
[1762425289254,16.94,159.89,159.84,7.95497244]
[1762425289569,7.36,159.86,159.84,7.95497244]
[1762425289866,0.57,159.88,159.82,7.95497244]
[1762425289867,7.36,159.85,159.82,7.95497244]
[1762425290060,7.95497244,159.84,159.76,6.91917776]
[1762425290265,8.52497244,159.84,159.79,7.95497244]
[1762425290651,7.93,159.83,159.79,7.95497244]
[1762425290964,15.88497244,159.83,159.77,10.44882769]
[1762425291163,15.88497244,159.83,159.78,7.95497244]
[1762425291371,20.592,159.86,159.78,0.66]
[1762425291584,7.36,159.85,159.82,7.95497244]
[1762425291750,7.36,159.85,159.79,10.44882769]
[1762425291946,7.36,159.84,159.77,6.25862376]
[1762425292147,7.36,159.83,159.82,7.95497244]
[1762425292572,20.592,159.86,159.82,7.95497244]
[1762425292875,7.36,159.85,159.82,9.78882769]
[1762425293176,7.36,159.85,159.83,7.95497244]
[1762425293580,7.36,159.85,159.82,10.49882769]
[1762425293754,7.36,159.85,159.83,7.95497244]
[1762425293951,20.592,159.87,159.82,10.49882769]
[1762425294152,21.162,159.87,159.83,7.95497244]
[1762425294461,7.36,159.86,159.83,7.95497244]
[1762425294862,16.94,159.89,159.85,7.95497244]
[1762425295168,16.94,159.89,159.86,7.95497244]
[1762425295374,7.36,159.88,159.86,7.95497244]
[1762425295567,7.36,159.88,159.85,9.78882769]
[1762425295773,7.36,159.88,159.86,7.95497244]
[1762425295965,7.36,159.88,159.85,17.74380013]
[1762425296165,7.36,159.88,159.86,0.71]
[1762425296478,7.36,159.88,159.87,14.21005469]
[1762425296682,56.25156363,159.96,159.88,9.78882769]
[1762425296683,7.95497244,159.96,159.88,9.78882769]
[1762425296860,8.52497244,159.98,159.92,7.95497244]
[1762425297180,15.33497244,159.95,159.9,9.78882769]
[1762425297350,7.38,159.95,159.91,0.71]
[1762425297557,7.38,159.95,159.94,7.95497244]
[1762425298251,7.38,159.95,159.94,18.45380013]
[1762425298570,7.38,159.95,159.94,24.70614475]
[1762425298793,0.1,159.99,159.95,9.78882769]
[1762425299001,0.1,159.99,159.95,10.49882769]
[1762425299157,0.1,159.99,159.98,9.78882769]
[1762425299354,7.5,159.99,159.98,17.74380013]
[1762425299561,50.0,160.09,159.98,18.45380013]
[1762425299765,0.67,160.1,159.99,10.49882769]
[1762425299979,7.95497244,160.07,159.99,10.49882769]
[1762425300162,0.67,160.06,160.0,7.95497244]
[1762425300370,7.95497244,160.04,159.96,0.71]
[1762425300567,7.95497244,159.99,159.95,9.78882769]
[1762425300757,7.4,159.98,159.94,17.74380013]
[1762425301090,7.95497244,159.99,159.94,9.78882769]
[1762425301255,7.4,159.98,159.93,9.78882769]
[1762425301451,0.67,160.01,159.97,7.95497244]
[1762425301656,0.67,160.01,159.92,6.25312207]
[1762425301657,0.67,160.04,160.0,7.95497244]
[1762425301857,7.4,160.03,159.98,7.95497244]
[1762425302164,7.4,160.03,159.99,9.78882769]
[1762425302361,8.07,160.03,159.99,9.78882769]
[1762425302570,7.4,160.03,160.0,8.66497244]
[1762425302865,7.4,160.03,159.99,0.71]
[1762425303082,7.4,160.03,160.0,8.66497244]
[1762425303286,7.4,160.02,160.0,7.95497244]
[1762425303492,7.95497244,160.05,159.99,9.78882769]
[1762425303784,0.67,160.06,159.99,9.78882769]
[1762425303785,7.4,160.04,159.99,9.78882769]
[1762425303998,16.02497244,160.04,159.99,17.74380013]
[1762425304464,8.07,160.04,159.99,17.74380013]
[1762425304661,7.4,160.04,160.0,17.74380013]
[1762425304862,21.262,160.06,160.01,7.95497244]
[1762425305078,21.262,160.06,160.0,7.95497244]
[1762425305079,15.35497244,160.05,160.0,7.95497244]
[1762425305386,7.95497244,160.01,159.86,7.12055065]
[1762425305587,15.35497244,160.0,159.95,7.95497244]
[1762425305766,0.67,160.02,159.95,7.95497244]
[1762425306096,15.35497244,160.01,159.97,7.95497244]
[1762425306569,15.35497244,160.01,159.95,0.71]
[1762425306570,7.95497244,160.0,159.96,7.95497244]
[1762425306779,7.95497244,159.98,159.93,18.45380013]
[1762425306967,7.4,159.97,159.92,9.78882769]
[1762425307280,7.95497244,159.94,159.89,7.95497244]
[1762425307683,7.4,159.93,159.89,7.95497244]
[1762425307998,7.95497244,159.92,159.87,8.66497244]
[1762425308503,7.95497244,159.9,159.84,0.71]
[1762425308708,8.18159194,159.93,159.81,0.71]
[1762425308709,15.35497244,159.89,159.81,0.71]
[1762425308865,15.35497244,159.89,159.82,7.95497244]
[1762425308866,7.95497244,159.87,159.82,7.95497244]
[1762425309060,7.95497244,159.86,159.81,0.71]
[1762425309261,7.95497244,159.85,159.81,0.71]
[1762425309472,7.4,159.84,159.8,7.95497244]
[1762425309686,15.63281827,159.92,159.77,6.96867274]
[1762425309687,0.67,159.95,159.78,8.11]
[1762425309900,7.95497244,159.9,159.85,7.95497244]
[1762425310066,57.4,159.94,159.82,7.95497244]
[1762425310067,7.95497244,159.88,159.82,7.95497244]
[1762425310268,50.0,159.91,159.82,7.95497244]
[1762425310269,15.37497244,159.87,159.82,7.95497244]
[1762425310576,7.42,159.86,159.82,7.95497244]
[1762425310781,7.42,159.85,159.82,0.71]
[1762425311110,7.42,159.84,159.83,7.95497244]
[1762425311389,7.42,159.84,159.82,0.71]
[1762425311690,7.42,159.84,159.83,17.74380013]
[1762425311897,7.42,159.84,159.83,9.78882769]
[1762425312188,7.42,159.86,159.84,9.78882769]
[1762425312380,7.42,159.87,159.86,9.78882769]
[1762425312696,7.42,159.88,159.86,6.25541039]
[1762425312988,7.42,159.88,159.86,6.96541039]
[1762425313170,7.42,159.88,159.87,0.71]
[1762425313379,7.42,159.88,159.87,8.66497244]
[1762425313560,7.42,159.88,159.86,6.25541039]
[1762425313764,7.42,159.88,159.87,7.95497244]
[1762425313960,7.42,159.88,159.82,0.71]
[1762425314165,15.37497244,159.88,159.83,7.95497244]
[1762425314365,7.95497244,159.87,159.82,8.66497244]
[1762425314793,15.37497244,159.88,159.83,8.66497244]
[1762425314968,7.42,159.87,159.83,8.66497244]
[1762425315477,7.42,159.87,159.84,7.95497244]
[1762425315672,8.62497244,159.89,159.84,7.95497244]
[1762425315875,7.42,159.88,159.84,7.95497244]
[1762425316078,7.42,159.87,159.84,7.95497244]
[1762425316697,8.62497244,159.89,159.84,7.95497244]
[1762425316870,8.62497244,159.89,159.84,8.66497244]
[1762425316871,7.42,159.86,159.84,8.66497244]
[1762425317066,7.42,159.86,159.83,7.95497244]
[1762425317274,7.95497244,159.84,159.79,8.66497244]
[1762425317485,7.42,159.86,159.8,7.95497244]
[1762425317682,7.95497244,159.85,159.8,7.95497244]
[1762425317982,7.95497244,159.84,159.79,8.66497244]
[1762425318180,7.95497244,159.83,159.77,7.95497244]
[1762425318381,7.95497244,159.83,159.74,15.65023244]
[1762425318382,7.95497244,159.83,159.74,6.26017278]
[1762425318383,7.95497244,159.79,159.74,6.26017278]
[1762425318682,7.95497244,159.77,159.73,0.71]
[1762425318871,15.37497244,159.76,159.71,14.21625673]
[1762425319268,0.78212989,159.82,159.74,7.95497244]
[1762425319502,7.42,159.81,159.78,7.95497244]
[1762425320380,7.42,159.81,159.78,5.65003917]
[1762425320599,20.592,159.84,159.79,0.71]
[1762425320800,7.42,159.87,159.84,9.78882769]
[1762425320981,7.42,159.87,159.85,5.65003917]
[1762425321299,7.42,159.87,159.82,0.71]
[1762425321501,7.44,159.86,159.84,5.65003917]
[1762425321683,7.44,159.86,159.82,0.71]
[1762425321892,7.44,159.86,159.84,5.65003917]
[1762425322091,5.65003917,159.89,159.84,5.65003917]
[1762425322402,5.65003917,159.87,159.82,6.36003917]
[1762425322588,8.11,159.88,159.8,0.67]
[1762425322792,7.44,159.88,159.83,5.65003917]
[1762425323100,7.44,159.88,159.82,9.78882769]
[1762425323101,6.32003917,159.89,159.84,5.65003917]
[1762425323301,7.44,159.87,159.84,5.65003917]
[1762425323504,7.44,159.86,159.84,5.65003917]
[1762425323687,7.44,159.86,159.82,9.78882769]
[1762425323891,13.09003917,159.86,159.81,5.65003917]
[1762425324083,5.65003917,159.83,159.78,5.65003917]
[1762425324405,7.44,159.82,159.79,9.77508668]
[1762425324604,7.44,159.82,159.79,5.65003917]
[1762425324804,7.44,159.82,159.78,5.65003917]
[1762425325176,7.44,159.81,159.79,6.32003917]
[1762425325406,7.44,159.8,159.79,5.65003917]
[1762425325582,7.44,159.8,159.77,20.592]
[1762425325789,7.44,159.8,159.78,5.65003917]
[1762425325986,7.44,159.8,159.75,16.04858233]
[1762425326200,7.44,159.79,159.76,9.78235522]
[1762425326403,7.44,159.79,159.74,5.65003917]
[1762425326404,13.76003917,159.79,159.74,5.65003917]
[1762425326716,6.32003917,159.78,159.73,5.65003917]
[1762425326891,7.44,159.79,159.74,5.65003917]
[1762425327093,7.44,159.79,159.76,5.65003917]
[1762425327391,7.44,159.78,159.73,9.78882769]
[1762425327596,7.44,159.77,159.75,5.65003917]
[1762425327799,7.44,159.76,159.75,5.65003917]
[1762425328505,7.44,159.78,159.75,0.67]
[1762425328703,5.65003917,159.81,159.77,5.65003917]
[1762425329010,13.09003917,159.8,159.76,5.65003917]
[1762425329223,5.65003917,159.79,159.74,5.65003917]
[1762425329509,8.11,159.8,159.73,6.93025219]
[1762425329883,8.11,159.8,159.73,22.58166394]
[1762425330286,0.67,159.8,159.73,22.58166394]
[1762425330485,7.44,159.79,159.75,5.65003917]
[1762425330711,13.09003917,159.79,159.74,5.65003917]
[1762425330893,13.09003917,159.79,159.74,11.90982235]
[1762425331218,0.67,159.78,159.74,5.65003917]
[1762425331394,8.11,159.79,159.73,21.91188283]
[1762425331721,8.11,159.79,159.75,5.65003917]
[1762425332489,6.32003917,159.78,159.72,6.26089823]
[1762425332811,6.32003917,159.78,159.73,5.65003917]
[1762425333028,0.67,159.78,159.71,10.45882769]
[1762425333191,5.65003917,159.75,159.68,0.67]
[1762425333390,0.67,159.77,159.68,6.9325133]
[1762425333391,5.65003917,159.73,159.68,6.9325133]
[1762425333618,5.65003917,159.73,159.68,6.32003917]
[1762425333817,5.65003917,159.73,159.67,0.2]
[1762425334006,5.65003917,159.73,159.68,5.65003917]
[1762425334391,5.65003917,159.73,159.68,6.32003917]
[1762425334591,0.67,159.72,159.68,5.65003917]
[1762425334985,5.65003917,159.74,159.69,5.65003917]
[1762425335187,7.44,159.73,159.69,5.65003917]
[1762425335887,8.11,159.73,159.68,6.26250496]
[1762425336130,13.76003917,159.73,159.68,5.65003917]
[1762425336313,6.32003917,159.72,159.67,12.11267084]
[1762425336519,5.65003917,159.72,159.67,12.11267084]
[1762425336698,5.65003917,159.72,159.67,6.57003917]
[1762425336900,13.76003917,159.73,159.68,5.65003917]
[1762425337519,5.65003917,159.7,159.67,0.2]
[1762425337992,5.65003917,159.68,159.67,0.2]
[1762425338396,6.32003917,159.68,159.67,0.2]
[1762425338997,56.32003917,159.68,159.67,0.2]
[1762425339196,62.58256422,159.68,159.67,0.2]
[1762425339706,63.36537985,159.68,159.67,0.2]
[1762425340418,73.15420754,159.68,159.67,0.2]
[1762425340943,50.0,159.64,159.56,12.6369598]
[1762425341095,5.65003917,159.6,159.55,15.43886686]
[1762425341421,7.44,159.59,159.55,5.65003917]
[1762425341727,7.44,159.59,159.53,0.72]
[1762425341728,13.09003917,159.59,159.54,5.65003917]
[1762425341896,13.09003917,159.59,159.53,0.72]
[1762425341897,5.65003917,159.58,159.53,12.63819215]
[1762425342092,5.65003917,159.58,159.53,6.37003917]
[1762425342296,5.65003917,159.58,159.53,6.98840743]
[1762425342518,5.65003917,159.57,159.53,6.98840743]
[1762425342818,6.32003917,159.59,159.54,5.65003917]
[1762425342995,7.42,159.56,159.52,7.18872004]
[1762425343196,7.42,159.56,159.52,6.57003917]
[1762425343396,5.65003917,159.55,159.52,0.2]
[1762425343643,5.65003917,159.56,159.52,0.92]
[1762425343803,7.42,159.54,159.52,0.92]
[1762425344127,7.42,159.54,159.52,0.2]
[1762425344812,6.32003917,159.53,159.52,0.2]
[1762425345839,56.32003917,159.53,159.52,0.2]
[1762425346149,6.32003917,159.53,159.52,0.2]
[1762425346340,0.67,159.53,159.52,0.2]
[1762425346541,6.32003917,159.53,159.52,0.2]
[1762425347034,13.76003917,159.53,159.52,0.2]
[1762425347432,6.32003917,159.53,159.52,0.2]
[1762425347735,100.67,159.59,159.52,0.92]
[1762425347951,5.65003917,159.57,159.52,0.92]
[1762425348131,5.65003917,159.56,159.52,7.18863261]
[1762425348337,5.65003917,159.57,159.52,6.46863261]
[1762425348552,7.44,159.56,159.52,6.46863261]
[1762425348712,13.09003917,159.56,159.52,0.2]
[1762425348913,5.65003917,159.55,159.52,0.2]
[1762425349938,13.09003917,159.56,159.52,0.2]
[1762425350309,5.65003917,159.54,159.52,0.2]
[1762425350529,13.09003917,159.53,159.52,0.2]
[1762425350722,7.44,159.53,159.52,0.2]
[1762425351330,1.99999999,159.67,159.53,30.38082769]
[1762425351532,50.0,159.63,159.57,5.65003917]
[1762425351836,7.44,159.62,159.58,5.65003917]
[1762425352043,13.09003917,159.62,159.57,9.78882769]
[1762425352227,13.09003917,159.62,159.57,15.43886686]
[1762425352424,7.44,159.62,159.58,6.35003917]
[1762425352629,7.44,159.62,159.59,5.65003917]
[1762425353034,7.44,159.62,159.56,20.592]
[1762425353035,5.65003917,159.62,159.56,0.7]
[1762425353244,5.65003917,159.63,159.58,5.65003917]
[1762425353542,6.32003917,159.62,159.57,5.65003917]
[1762425353841,6.32003917,159.62,159.56,0.7]
[1762425353842,6.32003917,159.62,159.56,11.91724308]
[1762425354229,6.32003917,159.62,159.57,5.65003917]
[1762425354646,7.46,159.61,159.57,6.35003917]
[1762425355144,6.32003917,159.62,159.57,6.35003917]
[1762425355343,7.46,159.61,159.57,6.35003917]
[1762425355640,6.32003917,159.62,159.57,12.61675462]
[1762425355841,6.32003917,159.62,159.55,0.7]
[1762425356045,5.65003917,159.61,159.55,6.35003917]
[1762425356253,5.65003917,159.58,159.53,5.65003917]
[1762425356644,5.65003917,159.58,159.53,6.35003917]
[1762425356830,6.32003917,159.58,159.53,6.35003917]
[1762425357032,6.32003917,159.58,159.52,0.2]
[1762425357033,5.65003917,159.55,159.52,0.2]
[1762425357227,0.67,159.57,159.52,0.2]
[1762425357555,6.32003917,159.57,159.52,0.2]
[1762425358130,7.46,159.56,159.52,0.2]
[1762425358440,6.32003917,159.57,159.52,0.2]
[1762425359045,5.65003917,159.56,159.52,0.2]
[1762425359627,7.46,159.55,159.52,0.2]
[1762425359828,13.11003917,159.55,159.52,0.2]
[1762425360056,13.09003917,159.54,159.52,0.2]
[1762425360355,13.09003917,159.53,159.52,0.2]
[1762425360650,106.43359085,159.53,159.52,0.2]
[1762425360850,0.78355168,159.53,159.52,0.2]
[1762425361031,13.11003917,159.53,159.52,0.2]
[1762425361468,5.65003917,159.53,159.52,0.2]
[1762425361649,5.65003917,159.55,159.52,0.2]
[1762425362036,7.46,159.54,159.52,0.9]
[1762425362368,50.0,159.61,159.53,5.65003917]
[1762425362541,55.65003917,159.57,159.52,5.85003917]
[1762425362741,5.65003917,159.56,159.52,0.2]
[1762425363244,5.65003917,159.56,159.52,0.9]
[1762425363562,7.46,159.55,159.52,6.55003917]
[1762425363849,50.67,159.59,159.54,20.592]
[1762425363850,5.65003917,159.59,159.54,20.592]
[1762425364047,7.46,159.58,159.54,26.24203917]
[1762425364262,7.46,159.58,159.54,0.7]
[1762425364465,50.0,159.54,159.52,0.2]
[1762425364629,5.65003917,159.53,159.52,0.2]
[1762425364832,13.11003917,159.53,159.52,0.2]
[1762425365030,13.78003917,159.53,159.52,0.2]
[1762425365230,64.56359085,159.53,159.52,0.2]
[1762425365431,63.78003917,159.53,159.52,0.2]
[1762425365855,64.56359085,159.53,159.52,0.2]
[1762425366045,70.83200431,159.53,159.52,0.2]
[1762425366246,64.56359085,159.53,159.52,0.2]
[1762425366755,7.46,159.53,159.52,0.2]
[1762425367935,63.11003917,159.53,159.52,0.2]
[1762425368356,63.78003917,159.53,159.52,0.2]
[1762425369167,58.13,159.53,159.52,0.2]
[1762425369369,63.78003917,159.53,159.52,0.2]